[Event "FIDE-Online-Steinitz-Memorial-Women"]
[Site "Internet"]
[Date "2020.05.17"]
[Round "17"]
[White "Stefanova, Antoaneta"]
[Black "Sebag, Marie"]
[Result "1/2-1/2"]
[ECO "D02"]
[WhiteElo "2485"]
[BlackElo "2482"]
[Annotator "RC"]
[PlyCount "132"]
[EventDate "2020.05.15"]
[EventType "tourn"]
[SourceTitle "playchess.com"]
[Source "ChessBase"]
[SourceQuality "1"]
[TimeControl "180+2"]

1. Nf3 d5 2. g3 {[%emt 0:00:04]} Nf6 {[%emt 0:00:06]} 3. Bg2 {[%emt 0:00:02]} g6 {[%emt 0:00:09]} 4. O-O {[%emt 0:00:03]} Bg7 {[%emt 0:00:01]} 5. d4 {[%emt 0:00:01]} O-O {[%emt 0:00:02]} 6. Bf4 {[%emt 0:00:01]} c6 {[%emt 0:00:05]} 7. Qc1 {[%emt 0:00:03]} Bf5 {[%emt 0:00:05]} 8. c4 {[%emt 0:00:04]} Nbd7 {[%emt 0:00:01]} 9. Rd1 {[%emt 0:00:12]} Ne4 {[%emt 0:00:17]} 10. h3 {[%emt 0:00:10]} Qb6 {[%emt 0:00:12]} 11. c5 {[%emt 0:00:36]} Qa6 {[%emt 0:00:12]} 12. Bf1 {[%emt 0:00:01]} b6 {[%emt 0:00:01]} 13. b4 {[%emt 0:00:05]} bxc5 {[%emt 0:00:18]} 14. bxc5 {[%emt 0:00:02]} Ndxc5 {[%emt 0:00:06]} 15. e3 {[%emt 0:00:11]} Qb7 {[%emt 0:00:11]} 16. g4 {[%emt 0:00:07]} Be6 {[%emt 0:00:10]} 17. Be5 {[%emt 0:00:09]} Nd7 {[%emt 0:00:05]} 18. Bxg7 {[%emt 0:00:02]} Kxg7 {[%emt 0:00:01]} 19. Nc3 {[%emt 0:00:04]} c5 {[%emt 0:00:11]} 20. Nxe4 {[%emt 0:00:04]} dxe4 {[%emt 0:00:06]} 21. dxc5 {[%emt 0:00:11]} Rac8 {[%emt 0:00:20]} 22. Qc3+ {[%emt 0:00:04]} Kg8 {[%emt 0:00:03]} 23. Nd4 {[%emt 0:00:15]} Nxc5 {[%emt 0:00:08]} 24. Qa3 {[%emt 0:00:06]} Rc7 {[%emt 0:00:12]} 25. Rab1 {[%emt 0:00:06]} Qa8 {[%emt 0:00:13]} 26. Nb5 {[%emt 0:00:04]} Rcc8 {[%emt 0:00:03]} 27. Rdc1 {[%emt 0:00:09]} Nd3 {[%emt 0:00:04]} 28. Nc7 {[%emt 0:00:06]} Rxc7 {[%emt 0:00:06]} 29. Rxc7 {[%emt 0:00:02]} Ne5 {[%emt 0:00:02]} 30. Qxe7 {[%emt 0:00:11]} Nf3+ {[%emt 0:00:01]} 31. Kh1 {[%emt 0:00:06]} Qd5 {[%emt 0:00:02]} 32. Bg2 {[%emt 0:00:07]} h5 {[%emt 0:00:03]} 33. Bxf3 {[%emt 0:00:04]} exf3 {[%emt 0:00:00]} 34. Qh4 {[%emt 0:00:03]} hxg4 {[%emt 0:00:03]} 35. hxg4 {[%emt 0:00:10]} Kg7 {[%emt 0:00:01]} 36. Kg1 {[%emt 0:00:02]} Rh8 {[%emt 0:00:05]} 37. Qg3 {[%emt 0:00:01]} Qg5 {[%emt 0:00:02]} 38. Rb4 {[%emt 0:00:05]} Qd5 {[%emt 0:00:03]} 39. Rd4 {[%emt 0:00:03]} Qxa2 {[%emt 0:00:02]} 40. Qe5+ {[%emt 0:00:01]} Kh7 {[%emt 0:00:02]} 41. Qh2+ {[%emt 0:00:02]} Kg7 {[%emt 0:00:02]} 42. Qe5+ {[%emt 0:00:01]} Kh7 {[%emt 0:00:01]} 43. g5 {[%emt 0:00:02]} Qb1+ {[%emt 0:00:02]} 44. Kh2 {[%emt 0:00:02]} Kg8+ {[%emt 0:00:02]} 45. Kg3 {[%emt 0:00:03]} Rh3+ {[%emt 0:00:10]} 46. Kf4 {[%emt 0:00:01]} Rh4+ {[%emt 0:00:01]} 47. Kxf3 {[%emt 0:00:08]} Rh3+ {[%emt 0:00:08]} 48. Kf4 {[%emt 0:00:02]} Rh4+ {[%emt 0:00:03]} 49. Kf3 {[%emt 0:00:01]} Rh3+ {[%emt 0:00:01]} 50. Kf4 {[%emt 0:00:12]} Kh7 {[%emt 0:00:02]} 51. Qxe6 {[%emt 0:00:05]} Rh4+ {[%emt 0:00:03]} 52. Ke5 {[%emt 0:00:03]} Qb5+ {[%emt 0:00:02]} 53. Rd5 {[%emt 0:00:02]} Qb2+ {[%emt 0:00:02]} 54. Kd6 {[%emt 0:00:03]} Qb6+ {[%emt 0:00:03]} 55. Rc6 {[%emt 0:00:01]} Qb4+ {[%emt 0:00:05]} 56. Rdc5 {[%emt 0:00:04]} fxe6 {[%emt 0:00:00]} 57. Rc7+ {[%emt 0:00:01]} Kg8 {[%emt 0:00:02]} 58. Rc8+ {[%emt 0:00:01]} Kf7 {[%emt 0:00:01]} 59. R8c7+ {[%emt 0:00:01]} Ke8 {[%emt 0:00:01]} 60. Rc8+ {[%emt 0:00:01]} Kf7 {[%emt 0:00:01]} 61. R8c7+ {[%emt 0:00:01]} Kg8 {[%emt 0:00:01]} 62. Rc8+ {[%emt 0:00:00]} Kh7 {[%emt 0:00:01]} 63. R8c7+ {[%emt 0:00:01]} Kh8 {[%emt 0:00:00]} 64. Rc8+ {[%emt 0:00:01]} Kg7 {[%emt 0:00:01]} 65. R8c7+ {[%emt 0:00:01]} Kf8 {[%emt 0:00:01]} 66. Rc8+ {[%emt 0:00:01]} Kf7 {[%emt 0:00:00]} 1/2-1/2

[Event "FIDE-Online-Steinitz-Memorial-Women"]
[Site "Internet"]
[Date "2020.05.17"]
[Round "17"]
[White "Khademalsharieh, Sarasadat"]
[Black "Paehtz, Elisabeth"]
[Result "0-1"]
[ECO "E62"]
[WhiteElo "2431"]
[BlackElo "2396"]
[Annotator "RC"]
[PlyCount "150"]
[EventDate "2020.05.15"]
[EventType "tourn"]
[SourceTitle "playchess.com"]
[Source "ChessBase"]
[SourceQuality "1"]
[TimeControl "180+2"]

1. Nf3 Nf6 2. c4 {[%emt 0:00:06]} g6 {[%emt 0:00:05]} 3. d4 {[%emt 0:00:02]} Bg7 {[%emt 0:00:01]} 4. g3 {[%emt 0:00:01]} O-O {[%emt 0:00:01]} 5. Bg2 {[%emt 0:00:01]} d6 {[%emt 0:00:01]} 6. O-O {[%emt 0:00:01]} Nc6 {[%emt 0:00:01]} 7. Nc3 {[%emt 0:00:00]} e5 {[%emt 0:00:01]} 8. dxe5 {[%emt 0:00:03]} dxe5 {[%emt 0:00:01]} 9. Bg5 {[%emt 0:00:04]} Be6 {[%emt 0:00:02]} 10. Qa4 {[%emt 0:00:07]} Qc8 {[%emt 0:00:04]} 11. Nd2 {[%emt 0:00:02]} Nd7 {[%emt 0:00:08]} 12. Qc2 {[%emt 0:00:16]} f6 {[%emt 0:00:03]} 13. Be3 {[%emt 0:00:02]} f5 {[%emt 0:00:05]} 14. Nd5 {[%emt 0:00:18]} Kh8 {[%emt 0:00:07]} 15. Nb3 {[%emt 0:00:07]} e4 {[%emt 0:00:14]} 16. Rad1 {[%emt 0:00:12]} Nde5 {[%emt 0:00:03]} 17. Nc5 {[%emt 0:00:06]} Bg8 {[%emt 0:00:01]} 18. h3 {[%emt 0:00:05]} b6 {[%emt 0:00:03]} 19. Nb3 {[%emt 0:00:09]} a5 {[%emt 0:00:08]} 20. f3 {[%emt 0:00:05]} exf3 {[%emt 0:00:10]} 21. exf3 {[%emt 0:00:03]} Bxd5 {[%emt 0:00:13]} 22. cxd5 {[%emt 0:00:03]} Nb4 {[%emt 0:00:01]} 23. Qb1 {[%emt 0:00:03]} Nc4 {[%emt 0:00:03]} 24. Bd4 {[%emt 0:00:24]} Qd7 {[%emt 0:00:02]} 25. Qc1 {[%emt 0:00:05]} Bxd4+ {[%emt 0:00:12]} 26. Rxd4 {[%emt 0:00:02]} Nd6 {[%emt 0:00:09]} 27. a3 {[%emt 0:00:11]} Na6 {[%emt 0:00:02]} 28. Rfd1 {[%emt 0:00:04]} Rae8 {[%emt 0:00:02]} 29. Qc3 {[%emt 0:00:01]} Nb5 {[%emt 0:00:07]} 30. Qd3 {[%emt 0:00:06]} Nxd4 {[%emt 0:00:02]} 31. Nxd4 {[%emt 0:00:01]} Nc5 {[%emt 0:00:07]} 32. Qc3 {[%emt 0:00:01]} Na4 {[%emt 0:00:11]} 33. Qc2 {[%emt 0:00:05]} Nc5 {[%emt 0:00:13]} 34. b4 {[%emt 0:00:02]} axb4 {[%emt 0:00:02]} 35. axb4 {[%emt 0:00:04]} Nb7 {[%emt 0:00:03]} 36. Ne6 {[%emt 0:00:04]} Rf7 {[%emt 0:00:08]} 37. Qc3+ {[%emt 0:00:07]} Kg8 {[%emt 0:00:01]} 38. Bf1 {[%emt 0:00:03]} Nd6 {[%emt 0:00:03]} 39. h4 {[%emt 0:00:02]} Rxe6 {[%emt 0:00:04]} 40. dxe6 {[%emt 0:00:01]} Qxe6 {[%emt 0:00:01]} 41. Re1 {[%emt 0:00:03]} Qf6 {[%emt 0:00:04]} 42. Qxf6 {[%emt 0:00:27]} Rxf6 {[%emt 0:00:02]} 43. Rc1 {[%emt 0:00:02]} Rf7 {[%emt 0:00:01]} 44. Bd3 {[%emt 0:00:03]} Re7 {[%emt 0:00:03]} 45. Kf2 {[%emt 0:00:01]} Kg7 {[%emt 0:00:01]} 46. Rc6 {[%emt 0:00:02]} Kf6 {[%emt 0:00:03]} 47. Rc2 {[%emt 0:00:02]} Nf7 {[%emt 0:00:07]} 48. b5 {[%emt 0:00:01]} Ne5 {[%emt 0:00:04]} 49. Be2 {[%emt 0:00:03]} Ke6 {[%emt 0:00:03]} 50. Rc1 {[%emt 0:00:06]} Kd6 {[%emt 0:00:02]} 51. Rc2 {[%emt 0:00:03]} Kd7 {[%emt 0:00:07]} 52. Rd2+ {[%emt 0:00:01]} Kc8 {[%emt 0:00:04]} 53. Rc2 {[%emt 0:00:01]} Nd7 {[%emt 0:00:02]} 54. Ra2 {[%emt 0:00:04]} Nc5 {[%emt 0:00:06]} 55. Rc2 {[%emt 0:00:02]} Kd7 {[%emt 0:00:01]} 56. Rd2+ {[%emt 0:00:01]} Ke6 {[%emt 0:00:01]} 57. Bc4+ {[%emt 0:00:02]} Kf6 {[%emt 0:00:01]} 58. Be2 {[%emt 0:00:01]} Rd7 {[%emt 0:00:02]} 59. Ra2 {[%emt 0:00:03]} Nb7 {[%emt 0:00:06]} 60. Rc2 {[%emt 0:00:04]} Nd6 {[%emt 0:00:01]} 61. Bd3 {[%emt 0:00:03]} Re7 {[%emt 0:00:02]} 62. Be2 {[%emt 0:00:01]} Ke5 {[%emt 0:00:02]} 63. Bd3 {[%emt 0:00:02]} Kd4 {[%emt 0:00:01]} 64. Be2 {[%emt 0:00:01]} Nb7 {[%emt 0:00:03]} 65. Rd2+ {[%emt 0:00:04]} Kc3 {[%emt 0:00:01]} 66. Rd3+ {[%emt 0:00:01]} Kb4 {[%emt 0:00:02]} 67. Rd4+ {[%emt 0:00:01]} Ka5 {[%emt 0:00:05]} 68. Rd1 {[%emt 0:00:03]} Nd6 {[%emt 0:00:02]} 69. Ra1+ {[%emt 0:00:01]} Kb4 {[%emt 0:00:01]} 70. Rb1+ {[%emt 0:00:01]} Kc3 {[%emt 0:00:02]} 71. Rc1+ {[%emt 0:00:01]} Kb2 {[%emt 0:00:02]} 72. Rd1 {[%emt 0:00:05]} Re5 {[%emt 0:00:02]} 73. Rd2+ {[%emt 0:00:01]} Kb3 {[%emt 0:00:03]} 74. Rd3+ {[%emt 0:00:03]} Kb4 {[%emt 0:00:01]} 75. Rd5 {[%emt 0:00:01]} Rxd5 {[%emt 0:00:02]} 0-1